bitfinex-derivatives/quotes_SOLF0:USTF0_20250411
["timestamp","ask_amount","ask_price","bid_price","bid_amount"]
[1744358094737,8.62450656,116.79,116.77,3.899526]
[1744358094936,8.62450656,116.79,116.76,17.78966301]
[1744358095138,8.62450656,116.79,116.77,3.89944724]
[1744358095343,8.62450656,116.79,116.76,17.78966301]
[1744358095543,8.62450656,116.79,116.77,3.89907658]
[1744358095745,8.62450656,116.79,116.76,17.78966301]
[1744358095946,8.62450656,116.79,116.77,3.89903928]
[1744358096144,8.62450656,116.79,116.76,17.78966301]
[1744358096343,8.62450656,116.79,116.77,3.89899136]
[1744358096544,8.62450656,116.79,116.76,17.78966301]
[1744358096746,8.62450656,116.79,116.77,3.89875025]
[1744358097048,8.62450656,116.79,116.76,17.78966301]
[1744358097340,8.568,116.78,116.77,3.89917298]
[1744358097544,8.568,116.78,116.76,0.06272604]
[1744358098747,8.568,116.78,116.76,8.63212604]
[1744358099642,8.62480656,116.79,116.76,17.78996301]
[1744358100343,9.21494353,116.79,116.76,0.06272604]
[1744358100543,0.05710656,116.79,116.76,0.06272604]
[1744358100842,17.72663697,116.77,116.76,0.06272604]
[1744358101043,49.76663697,116.77,116.76,0.06272604]
[1744358101246,41.19783697,116.77,116.72,9.15783697]
[1744358101540,17.72803697,116.76,116.73,12.06720317]
[1744358101745,17.72803697,116.76,116.74,3.90160729]
[1744358101946,9.15783697,116.76,116.71,8.5728]
[1744358102244,9.15783697,116.75,116.72,12.06895956]
[1744358102547,32.04,116.74,116.73,3.90324893]
[1744358102849,41.19783697,116.74,116.72,0.06597303]
[1744358103048,9.15783697,116.73,116.72,0.06597303]
[1744358103245,9.15783697,116.73,116.72,12.13517861]
[1744358103445,17.72953697,116.73,116.72,12.13517861]
[1744358103852,17.72953697,116.73,116.72,3.96804415]
[1744358104454,8.5717,116.73,116.72,3.96804415]
[1744358104748,40.6112,116.74,116.72,3.96804415]
[1744358104953,49.76903697,116.74,116.72,0.06597303]
[1744358106050,32.04,116.74,116.72,17.79601]
[1744358106453,32.04,116.74,116.73,3.90118516]
[1744358107355,32.04,116.74,116.72,17.79601]
[1744358107653,32.04,116.74,116.73,17.72953697]
[1744358107854,32.04,116.74,116.73,21.62988071]
[1744358108055,32.04,116.74,116.73,17.72953697]
[1744358108254,32.04,116.74,116.73,21.62980741]
[1744358108553,32.04,116.74,116.73,9.15783697]
[1744358109253,32.04,116.74,116.73,13.05792877]
[1744358109457,32.04,116.74,116.73,9.15783697]
[1744358109752,32.04,116.74,116.73,13.05710704]
[1744358110150,32.04,116.74,116.73,13.05664991]
[1744358110452,32.04,116.74,116.73,21.21519412]
[1744358110752,32.04,116.74,116.73,13.05664991]
[1744358110953,32.04,116.74,116.73,21.21655332]
[1744358111351,32.04,116.74,116.73,17.72953697]
[1744358112454,32.04,116.74,116.73,29.78521166]
[1744358115162,0.05415321,116.75,116.73,29.78521166]
[1744358115364,0.05415321,116.75,116.74,3.89787868]
[1744358115963,0.05415321,116.75,116.74,13.05571565]
[1744358116166,0.05415321,116.75,116.74,21.21253885]
[1744358117661,0.05415321,116.75,116.74,12.05470188]
[1744358120967,0.05415321,116.75,116.74,12.0575399]
[1744358121768,0.05415321,116.75,116.74,12.05875831]
[1744358123775,0.05415321,116.75,116.74,21.21659528]
[1744358124272,0.05415321,116.75,116.74,29.78759528]
[1744358124469,32.04,116.77,116.74,21.22131444]
[1744358124671,32.04,116.77,116.76,9.15783697]
[1744358124874,32.04,116.77,116.76,29.79081444]
[1744358129878,32.04,116.77,116.76,29.78789221]
[1744358130581,32.04,116.81,116.76,21.21839221]
[1744358130780,32.04,116.81,116.79,9.15783697]
[1744358130982,40.6062,116.81,116.79,9.15783697]
[1744358131382,32.04,116.81,116.78,17.72553697]
[1744358131583,41.19783697,116.81,116.78,8.5677]
[1744358131883,40.66259986,116.81,116.78,17.78476462]
[1744358135980,32.09639986,116.81,116.79,8.5668]
[1744358136186,32.09639986,116.81,116.79,17.72463697]
[1744358138583,41.25423683,116.81,116.78,9.21706462]
[1744358138778,41.25423683,116.81,116.78,0.05922765]
[1744358138990,8.5671,116.8,116.78,0.05922765]
[1744358140684,8.5671,116.8,116.78,8.62722765]
[1744358141190,8.5671,116.8,116.78,17.78506462]
[1744358142790,8.5671,116.8,116.78,9.21706462]
[1744358144084,8.5671,116.8,116.78,0.05922765]
[1744358144290,8.5671,116.8,116.78,8.62722765]
[1744358144692,8.5671,116.8,116.78,17.78506462]
[1744358145092,8.5671,116.8,116.78,8.62722765]
[1744358145694,40.66259986,116.81,116.78,17.78506462]
[1744358145894,32.09639986,116.81,116.78,17.78506462]
[1744358146194,8.567,116.8,116.78,0.05922765]
[1744358146693,8.567,116.8,116.78,8.62712765]
[1744358147792,8.567,116.8,116.78,0.05922765]
[1744358154798,8.567,116.8,116.78,8.62722765]
[1744358154991,40.66269986,116.81,116.78,8.62722765]
[1744358155600,9.15783697,116.8,116.78,0.05922765]
[1744358155798,9.15783697,116.79,116.78,0.05922765]
[1744358156205,17.72513697,116.79,116.78,0.05922765]
[1744358163809,8.5673,116.79,116.78,0.05922765]
[1744358166211,8.5697,116.76,116.73,4.459]
[1744358166414,32.02,116.75,116.74,12.07036567]
[1744358167413,32.02,116.75,116.74,21.22820264]
[1744358169016,32.02,116.75,116.74,29.79920264]
[1744358169513,0.05880634,116.76,116.74,21.22820264]
[1744358169814,0.05880634,116.76,116.75,29.79840264]
[1744358172616,0.05880634,116.76,116.75,21.22820264]
[1744358173707,8.62830634,116.76,116.75,12.07036567]
[1744358175713,32.07880634,116.76,116.75,12.07036567]
[1744358176112,32.07880634,116.76,116.75,21.22820264]
[1744358176922,32.07880634,116.76,116.75,21.23087114]
[1744358178620,32.07880634,116.76,116.75,29.80107114]
[1744358178821,32.07880634,116.76,116.75,29.80293433]
[1744358179122,32.07880634,116.76,116.75,20.64509736]
[1744358179317,32.07880634,116.76,116.75,29.80293433]
[1744358180120,0.05880634,116.76,116.75,29.80293433]
[1744358180320,0.05880634,116.76,116.75,21.23273433]
[1744358181321,0.05880634,116.76,116.75,29.80293433]
[1744358183822,0.05880634,116.76,116.75,21.23273433]
[1744358184223,0.05880634,116.76,116.75,12.07489736]
[1744358185031,0.05880634,116.76,116.75,20.64509736]
[1744358185324,0.05880634,116.76,116.75,12.07489736]
[1744358185521,8.62830634,116.76,116.75,12.07489736]
[1744358185721,40.64830634,116.76,116.75,12.07489736]
[1744358186026,40.64830634,116.76,116.75,12.09218935]
[1744358186625,8.5706,116.75,116.73,0.06131867]
[1744358186814,17.72843697,116.75,116.74,12.09953855]
[1744358187013,8.5706,116.75,116.74,12.09953855]
[1744358187822,8.5706,116.75,116.74,12.0981736]
[1744358189321,8.5706,116.75,116.74,12.09617921]
[1744358190831,32.07880634,116.76,116.74,21.25401618]
[1744358191028,32.07880634,116.76,116.75,13.06790912]
[1744358191223,32.07880634,116.76,116.75,21.25169697]
[1744358191423,32.07880634,116.76,116.75,29.82272375]
[1744358194428,0.05880634,116.76,116.75,29.82272375]
[1744358195326,0.05880634,116.76,116.75,21.25388105]
[1744358195627,8.62830634,116.76,116.75,12.09604408]
[1744358196630,17.78614331,116.76,116.75,12.09604408]
[1744358198627,17.78614331,116.76,116.75,8.18555935]
[1744358198830,17.78614331,116.76,116.75,12.09718722]
[1744358199431,32.07880634,116.76,116.75,12.09718722]
[1744358199935,32.07880634,116.76,116.73,9.21915564]
[1744358200128,32.07880634,116.76,116.74,12.10103381]
[1744358200328,32.07880634,116.76,116.75,12.10103381]
[1744358201035,40.64830634,116.76,116.75,12.10103381]
[1744358204142,40.64830634,116.76,116.75,12.10193867]
[1744358207744,40.64830634,116.76,116.75,12.10633716]
[1744358210644,40.64830634,116.76,116.75,3.91344069]
[1744358215854,8.62830634,116.76,116.75,3.91344069]
[1744358216150,0.05880634,116.76,116.75,21.26228125]
[1744358219253,8.62830634,116.76,116.75,12.10444428]
[1744358220241,17.78614331,116.76,116.75,12.10444428]
[1744358220447,9.21664331,116.76,116.73,0.06131867]
[1744358220647,41.15783697,116.75,116.74,3.91807149]
[1744358222355,49.72803697,116.75,116.74,3.91807149]
[1744358222745,40.5702,116.75,116.74,3.91807149]
[1744358223157,40.5702,116.75,116.74,12.11739029]
[1744358225757,40.5702,116.75,116.74,12.11784989]
[1744358227156,32.0,116.75,116.74,12.11784989]
[1744358227755,32.0,116.75,116.74,21.27568686]
[1744358228660,32.0,116.75,116.74,29.84668686]
[1744358229358,0.05880634,116.76,116.74,29.84668686]
[1744358229558,0.05880634,116.76,116.75,21.27568686]
[1744358229756,0.05880634,116.76,116.75,29.84588686]
[1744358231061,0.05880634,116.76,116.75,21.27568686]
[1744358231661,0.05880634,116.76,116.75,29.84588686]
[1744358238270,0.05880634,116.76,116.75,29.83824989]
[1744358243473,0.05880634,116.76,116.75,21.26804989]
[1744358246574,0.05880634,116.76,116.75,12.11021292]
[1744358246769,8.62830634,116.76,116.75,12.11021292]
[1744358248574,8.62830634,116.76,116.75,12.10498761]
[1744358251378,17.78614331,116.76,116.75,12.10498761]
[1744358252083,8.571,116.74,116.73,0.06131867]
[1744358252376,40.551,116.74,116.73,12.16494342]
[1744358252985,49.70883697,116.74,116.73,12.16494342]
[1744358254379,49.70883697,116.74,116.73,3.97627465]
[1744358254574,49.70883697,116.74,116.73,0.06131867]
[1744358254780,40.551,116.74,116.73,0.06131867]
[1744358255385,40.551,116.74,116.73,3.97758067]
[1744358256185,40.551,116.74,116.73,3.97737637]
[1744358257181,49.70883697,116.74,116.73,3.97737637]
[1744358257487,49.70883697,116.74,116.73,0.06131867]
[1744358259487,8.5751,116.69,116.63,47.60786477]
[1744358259675,32.0,116.68,116.65,21.26448066]
[1744358259880,41.15783697,116.68,116.66,12.10664369]
[1744358260076,40.5754,116.68,116.67,12.10664369]
[1744358260376,41.15783697,116.68,116.63,36.37350316]
[1744358260583,8.577,116.66,116.64,12.15915551]
[1744358260783,8.577,116.66,116.65,12.1017972]
[1744358260988,9.21649796,116.67,116.65,12.1017972]
[1744358261290,8.63476099,116.67,116.64,9.21519528]
[1744358261484,8.63476099,116.67,116.65,12.08843204]
[1744358261788,8.5769,116.66,116.64,9.21519528]
[1744358261988,8.5769,116.66,116.65,12.0875042]
[1744358262385,8.63516099,116.67,116.65,12.0875042]
[1744358262581,8.63516099,116.67,116.64,17.79329528]
[1744358262785,0.05866099,116.67,116.66,9.15783697]
[1744358263078,0.05866099,116.67,116.66,21.23694343]
[1744358263282,31.98,116.7,116.69,8.5746]
[1744358263489,9.15783697,116.73,116.69,21.63795229]
[1744358263688,34.2529,116.75,116.7,9.15783697]
[1744358263888,9.15783697,116.74,116.7,9.15783697]
[1744358264089,8.5728,116.72,116.7,9.15783697]
[1744358264283,32.03869109,116.72,116.7,0.05960013]
[1744358265278,8.5732,116.71,116.7,0.05960013]
[1744358268594,9.15783697,116.71,116.63,4.5643]
[1744358268793,9.15783697,116.68,116.65,9.15783697]
[1744358268991,9.15783697,116.68,116.66,12.06497771]
[1744358268992,41.13783697,116.68,116.66,12.06497771]
[1744358269194,9.15783697,116.67,116.63,13.72213697]
[1744358269496,9.15783697,116.67,116.64,12.06707187]
[1744358269692,8.63268741,116.66,116.65,12.06707187]
[1744358270393,8.5776,116.65,116.64,0.06151218]
[1744358270593,40.5576,116.65,116.64,0.06151218]
[1744358270891,40.5576,116.65,116.57,11.90196619]
[1744358270892,8.5801,116.62,116.57,11.90196619]
[1744358271082,40.5601,116.62,116.58,12.07123801]
[1744358271284,31.98,116.62,116.59,21.22907498]
[1744358271485,31.98,116.62,116.6,12.07123801]
[1744358271685,31.98,116.62,116.59,9.15783697]
[1744358271885,31.98,116.62,116.6,29.79867467]
[1744358272083,32.0356116,116.62,116.6,17.73903697]
[1744358272293,40.6154116,116.62,116.6,9.15783697]
[1744358272792,8.5805,116.61,116.59,0.05566303]
[1744358272992,32.0356116,116.62,116.59,9.2135]
[1744358273191,32.0356116,116.62,116.6,13.05416514]
[1744358273391,32.0356116,116.62,116.6,8.581]
[1744358274189,32.0356116,116.62,116.59,22.98404564]
[1744358274395,32.0356116,116.62,116.59,14.40244564]
[1744358275302,32.0356116,116.62,116.6,8.5813]
[1744358276106,32.0356116,116.62,116.61,8.5805]
[1744358276301,32.0356116,116.62,116.59,14.40244564]
[1744358276600,32.0356116,116.62,116.6,8.5809]
[1744358277804,32.0356116,116.62,116.59,14.40244564]
[1744358278101,32.0356116,116.62,116.59,0.05566303]
[1744358278304,8.5805,116.61,116.59,0.05566303]
[1744358279403,32.0356116,116.62,116.59,0.05566303]
[1744358280001,8.5813,116.6,116.59,0.05566303]
[1744358282106,8.583,116.58,116.55,8.5847]
[1744358282305,14.34678261,116.61,116.55,8.5847]
[1744358282306,32.0,116.57,116.55,8.5847]
[1744358283115,32.06084878,116.57,116.55,8.64062588]
[1744358283303,40.64444878,116.57,116.55,0.05592588]
[1744358283511,46.40763139,116.57,116.55,0.05592588]
[1744358284006,8.5842,116.56,116.55,0.05592588]
[1744358287204,40.64484878,116.57,116.55,0.05592588]
[1744358287399,32.06084878,116.57,116.55,0.05592588]
[1744358287905,8.5842,116.56,116.55,0.05592588]
[1744358300113,40.64464878,116.57,116.55,0.05592588]
[1744358301722,8.64464878,116.57,116.55,0.05592588]
[1744358301922,32.02,116.56,116.55,0.05592588]
[1744358303225,8.64464878,116.57,116.55,0.05592588]
[1744358303419,32.02,116.56,116.55,0.05592588]
[1744358303922,8.64464878,116.57,116.55,8.64082588]
[1744358304123,32.02,116.56,116.55,8.64082588]
[1744358305019,32.02,116.56,116.55,0.05592588]
[1744358305420,32.02,116.56,116.55,9.24866947]
[1744358305720,32.02,116.56,116.55,0.05592588]
[1744358308521,40.6042,116.56,116.55,0.05592588]
[1744358308714,49.79694359,116.56,116.55,0.05592588]
[1744358309629,40.6042,116.56,116.55,0.05592588]
[1744358309827,49.79694359,116.56,116.55,0.05592588]
[1744358315332,8.5863,116.54,116.51,12.9848]
[1744358315633,32.02,116.53,116.52,12.09267691]
[1744358315935,40.6064,116.53,116.52,12.09267691]
[1744358316439,32.02,116.53,116.52,12.09267691]
[1744358318139,40.6064,116.53,116.52,3.90999885]
[1744358318639,8.5871,116.52,116.51,0.05685051]
[1744358318838,17.77984359,116.52,116.51,12.16030129]
[1744358319040,17.77984359,116.52,116.51,3.97035175]
[1744358319743,17.77984359,116.52,116.51,0.05685051]
[1744358320144,8.5871,116.52,116.51,3.97143201]
[1744358320546,40.6068,116.53,116.51,12.16604744]
[1744358320840,49.79954359,116.53,116.51,0.05685051]
[1744358321046,41.21274359,116.53,116.51,0.05685051]
[1744358321447,8.5871,116.52,116.51,0.05685051]
[1744358321749,8.5871,116.52,116.51,12.17210932]
[1744358323652,49.79944359,116.53,116.51,12.17210932]
[1744358323851,49.79944359,116.53,116.52,3.91732598]
[1744358324261,40.6067,116.53,116.52,3.91732598]
[1744358324550,49.79944359,116.53,116.52,3.91732598]
[1744358325748,40.6067,116.53,116.52,3.91732598]
[1744358325950,32.02,116.53,116.52,12.12913675]
[1744358327353,40.6064,116.53,116.52,12.12913675]
[1744358328750,40.6064,116.53,116.52,3.91732598]
[1744358328954,40.6064,116.53,116.52,12.13180056]
[1744358329655,40.6064,116.53,116.52,8.21447458]
[1744358329855,40.6064,116.53,116.52,12.13927]
[1744358330650,32.02,116.53,116.52,12.13927]
[1744358331555,32.02,116.53,116.52,12.1363191]
[1744358335361,40.6064,116.53,116.52,12.1363191]
[1744358336858,49.79914359,116.53,116.52,12.1363191]
[1744358340268,49.79914359,116.53,116.52,3.92413447]
[1744358340467,8.5871,116.52,116.51,0.05685051]
[1744358340656,8.5871,116.52,116.51,12.19502974]
[1744358341264,40.6067,116.53,116.51,12.19502974]
[1744358341465,40.6067,116.53,116.52,3.92474556]
[1744358343265,32.02,116.53,116.52,3.92474556]
[1744358343470,32.02,116.53,116.52,21.33041484]
[1744358344369,32.02,116.53,116.52,29.91751484]
[1744358345871,0.06057986,116.54,116.53,8.5864]
[1744358346068,0.06057986,116.54,116.53,29.91578289]
[1744358346675,32.02,116.56,116.55,8.5849]
[1744358346875,32.02,116.56,116.55,29.91428289]
[1744358347372,32.02,116.58,116.57,8.5831]
[1744358347563,32.02,116.58,116.57,29.91248289]
[1744358347967,0.05611598,116.59,116.58,8.5827]
[1744358348167,0.05611598,116.59,116.58,20.7193393]
[1744358348569,0.05611598,116.59,116.58,29.91208289]
[1744358351277,0.05611598,116.59,116.58,29.9011923]
[1744358353079,8.5794,116.63,116.6,8.5811]
[1744358353271,8.5794,116.63,116.6,17.77384359]
[1744358353474,32.0,116.62,116.6,17.77384359]
[1744358354173,32.05786766,116.62,116.6,17.8340535]
[1744358357879,32.05786766,116.62,116.6,8.64130991]
[1744358358973,40.63786766,116.62,116.6,0.06020991]
[1744358362085,9.19274359,116.61,116.55,9.19274359]
[1744358362286,9.19274359,116.59,116.56,3.89707969]
[1744358362482,32.0,116.58,116.56,8.5839]
[1744358363083,32.0,116.58,116.56,17.77664359]
[1744358363272,32.06082686,116.58,116.56,17.8353107]
[1744358363477,32.06082686,116.58,116.57,17.77624359]
[1744358363680,32.0,116.61,116.57,13.08926351]
[1744358363873,32.0,116.61,116.59,9.19274359]
[1744358364285,32.0,116.61,116.59,17.77464359]
[1744358364879,32.05483805,116.61,116.6,17.77404359]
[1744358365584,32.05483805,116.61,116.6,9.19274359]
[1744358366184,32.05483805,116.61,116.59,17.83414751]
[1744358367087,32.05483805,116.61,116.6,8.5813]
[1744358368387,32.05483805,116.61,116.59,9.25244751]
[1744358368388,32.05483805,116.61,116.59,17.83404751]
[1744358369789,32.05483805,116.61,116.6,8.5813]
[1744358370288,32.05483805,116.61,116.6,17.77404359]
[1744358370783,32.05483805,116.61,116.6,8.5813]
[1744358370989,32.05483805,116.61,116.59,17.83404751]
[1744358371192,32.05483805,116.61,116.59,9.25244751]
[1744358371381,32.05483805,116.61,116.6,9.19274359]
[1744358372087,32.05483805,116.61,116.6,17.77404359]
[1744358372285,32.05483805,116.61,116.59,0.05970392]
[1744358372986,40.63533805,116.61,116.59,8.64170392]
[1744358373387,40.63533805,116.61,116.59,0.05970392]
[1744358373588,49.82808164,116.61,116.59,0.05970392]
[1744358373790,40.63533805,116.61,116.59,0.05970392]
[1744358375089,32.05483805,116.61,116.59,8.64150392]
[1744358375787,40.63543805,116.61,116.59,0.05970392]
[1744358376785,32.05483805,116.61,116.59,0.05970392]
[1744358376991,32.05483805,116.61,116.59,9.25244751]
[1744358377391,32.05483805,116.61,116.59,17.83404751]
[1744358382394,32.05483805,116.61,116.6,8.5813]
[1744358383195,32.05483805,116.61,116.59,17.83414751]
[1744358386196,32.05483805,116.61,116.6,12.49397016]
[1744358387197,32.05483805,116.61,116.6,8.5813]
[1744358387395,32.05483805,116.61,116.6,20.68943591]
[1744358388996,32.05483805,116.61,116.6,12.49421646]
[1744358389202,32.05483805,116.61,116.6,20.70492002]
[1744358390298,32.05483805,116.61,116.6,12.12362002]
[1744358390897,32.05483805,116.61,116.6,20.70492002]
[1744358391598,0.05483805,116.61,116.6,20.70492002]
[1744358391797,0.05483805,116.61,116.6,12.12362002]
[1744358394287,8.63533805,116.61,116.6,12.12362002]
[1744358395592,0.05483805,116.61,116.6,12.12362002]
[1744358397900,0.05483805,116.61,116.6,20.70492002]
[1744358398102,0.05483805,116.61,116.6,20.71784951]
[1744358399594,0.05483805,116.61,116.6,12.13654951]
[1744358400097,0.05483805,116.61,116.59,8.64140392]
[1744358400298,0.05483805,116.61,116.6,8.5813]
[1744358400498,2.1029,116.66,116.59,0.05970392]
[1744358400700,2.1029,116.66,116.56,62.0]
[1744358400900,8.5789,116.64,116.61,8.5801]
[1744358401202,8.5789,116.64,116.62,12.15882073]
[1744358401394,8.5789,116.64,116.63,12.15882073]
[1744358401600,8.63501339,116.64,116.63,12.15882073]
[1744358402204,8.5798,116.62,116.61,0.05881515]
[1744358402404,31.98,116.62,116.61,12.22377115]
[1744358402604,0.05611339,116.64,116.61,0.05881515]
[1744358403106,0.05611339,116.64,116.62,8.5796]
[1744358403305,0.05611339,116.64,116.61,0.05881515]
[1744358403604,8.63461339,116.64,116.61,8.63891515]
[1744358404306,0.05611339,116.64,116.61,0.05881515]
[1744358404900,8.63611339,116.64,116.43,51.46]
[1744358405102,2.1029,116.66,116.45,51.46]
[1744358405301,25.72,116.64,116.46,3.29476734]
[1744358405500,10.17987207,116.63,116.46,1.71732783]
[1744358405697,8.5832,116.58,116.46,1.71732783]
[1744358405909,10.17987207,116.57,116.46,1.71732783]
[1744358406096,7.11e-05,116.53,116.51,0.05501262]
[1744358406500,3.73675875,116.6,116.56,8.5837]
[1744358406809,10.17477423,116.59,116.57,6.34117529]
[1744358407007,2.1832,116.67,116.61,8.5805]
[1744358407209,3.73909712,116.66,116.57,6.34117529]
[1744358407408,3.73909712,116.65,116.57,6.40698272]
[1744358407711,3.73909712,116.64,116.57,6.34117529]
[1744358408014,10.37729712,116.63,116.57,6.34117529]
[1744358408302,6.6382,116.63,116.55,95.6960321]
[1744358408508,0.0566384,116.61,116.55,39.88770372]
[1744358408713,0.0566384,116.61,116.54,367.85163172]
[1744358408906,8.5849,116.55,116.54,354.32173172]
[1744358409112,8.5849,116.55,116.54,340.75073172]
[1744358410507,8.64087597,116.56,116.54,340.75073172]
[1744358410712,0.05667597,116.56,116.54,340.75073172]
[1744358411014,8.64097597,116.56,116.54,340.75073172]
[1744358411217,0.05667597,116.56,116.53,0.06182288]
[1744358411626,8.5856,116.55,116.53,0.06182288]
[1744358411917,0.05667597,116.56,116.53,0.06182288]
[1744358412819,8.5849,116.55,116.53,0.06182288]
[1744358413118,0.05667597,116.56,116.53,2.288e-05]
[1744358415019,0.05667597,116.56,116.54,8.5852]
[1744358415221,0.05667597,116.56,116.53,2.288e-05]
[1744358415421,0.05667597,116.56,116.55,8.5849]
[1744358415622,11.81823712,116.61,116.53,2.288e-05]
[1744358415813,11.81823712,116.61,116.46,3.29453608]
[1744358416022,11.81823712,116.61,116.46,1.71732783]
[1744358416425,11.81823712,116.61,116.47,1.57719752]
[1744358416729,3.887e-05,116.55,116.53,0.06593933]
[1744358417027,11.81823712,116.61,116.48,17.1797]
[1744358417223,11.81823712,116.61,116.49,3.29400509]
[1744358417429,11.81823712,116.61,116.5,62.0]
[1744358417628,47.71274782,116.67,116.5,64.1923]
[1744358417829,8.581,116.61,116.57,8.5831]
[1744358418126,0.06256655,116.6,116.57,8.64302857]
[1744358418727,0.06256655,116.6,116.57,0.05992857]
[1744358419528,0.06256655,116.6,116.57,8.64332857]
[1744358419825,0.06256655,116.6,116.57,0.05992857]
[1744358420221,8.5827,116.58,116.57,0.05992857]
[1744358420523,0.06256655,116.6,116.5,2.1923]
[1744358420719,8.5843,116.56,116.52,8.5866]
[1744358420923,71.68926997,116.65,116.53,3.89712461]
[1744358421121,71.68926997,116.65,116.54,3.89667003]
[1744358421317,71.68926997,116.65,116.5,4.2996]
[1744358421619,1.47018987,116.64,116.58,0.06380519]
[1744358421819,0.05939441,116.59,116.5,4.2996]
[1744358422028,71.68926997,116.65,116.51,3.89666021]
[1744358422322,0.05711514,116.56,116.52,3.89666021]
[1744358422532,1.4701669,116.64,116.54,8.5852]
[1744358422825,73.15943687,116.64,116.54,8.5852]
[1744358423025,71.68926997,116.64,116.54,8.5852]
[1744358423331,0.05954611,116.6,116.55,8.5845]
[1744358423525,0.05954611,116.6,116.58,0.05514595]
[1744358423723,8.5815,116.6,116.51,2.1227]
[1744358423924,0.06531388,116.6,116.58,0.05820869]
[1744358424129,71.68926997,116.64,116.51,2.1227]
[1744358424323,0.06520102,116.6,116.58,0.06450095]
[1744358425129,0.06520102,116.6,116.58,8.64720095]
[1744358425634,8.64690102,116.6,116.58,0.06450095]
[1744358426039,0.06520102,116.6,116.58,0.06450095]
[1744358426332,8.582,116.59,116.58,0.06450095]
[1744358426530,0.06520102,116.6,116.51,2.1227]
[1744358426831,25.72,116.64,116.52,3.89673899]
[1744358427026,176.90993502,116.63,116.46,2.264]
[1744358427226,25.72,116.61,116.47,3.8980188]
[1744358427427,25.72,116.56,116.39,143.544048]
[1744358427628,0.05525113,116.49,116.46,0.06100578]
[1744358427831,25.72,116.47,116.39,143.544048]
[1744358428528,25.72,116.52,116.39,143.544048]
[1744358428733,25.72,116.5,116.39,143.544048]
[1744358428929,0.06121888,116.47,116.44,6.406e-05]
[1744358429236,8.5923,116.45,116.44,6.406e-05]
[1744358435034,0.06121888,116.47,116.44,6.406e-05]
[1744358435838,8.5916,116.46,116.44,6.406e-05]
[1744358436033,0.06121888,116.47,116.44,6.406e-05]
[1744358437139,8.5923,116.45,116.44,6.406e-05]
[1744358439640,34.3123,116.45,116.44,6.406e-05]
[1744358439837,42.8923,116.45,116.44,6.406e-05]
[1744358440237,35.76922165,116.45,116.32,6.7171]
[1744358440440,1.46922165,116.44,116.32,6.7171]
[1744358440743,27.18922165,116.44,116.32,6.7171]
[1744358441041,25.81,116.47,116.32,6.7171]
[1744358441442,0.05481152,116.41,116.32,6.7171]
[1744358441744,1.46888624,116.46,116.32,6.7171]
[1744358442043,8.5982,116.37,116.35,0.06325322]
[1744358442242,25.81,116.47,116.33,8.6007]
[1744358442444,8.66044136,116.37,116.34,0.06077551]
[1744358442640,25.81,116.47,116.32,6.7171]
[1744358442837,0.05780337,116.37,116.34,0.06473337]
[1744358443037,8.5994,116.36,116.32,6.7171]
[1744358443237,0.05608002,116.37,116.34,0.06181733]
[1744358443439,8.5994,116.36,116.32,6.7171]
[1744358443642,8.5994,116.36,116.34,0.05998786]
[1744358443847,0.06594416,116.37,116.34,0.05998786]
[1744358445347,8.66474416,116.37,116.34,0.05998786]
[1744358445544,0.06594416,116.37,116.34,8.66028786]
[1744358445943,0.06594416,116.37,116.34,0.05998786]
[1744358446140,11.81823712,116.45,116.34,0.05998786]
[1744358446450,11.81823712,116.45,116.33,2.1271]
[1744358446641,11.81823712,116.45,116.35,8.5993]
[1744358446836,8.597,116.39,116.35,8.5993]
[1744358447048,11.81823712,116.45,116.33,2.1271]
[1744358447249,11.81823712,116.45,116.32,4.4279]
[1744358447451,0.0608699,116.4,116.38,0.05526998]
[1744358447651,8.598,116.38,116.34,8.6004]
[1744358447953,8.598,116.38,116.35,0.05860148]
[1744358448248,0.0627702,116.37,116.35,0.05860148]
[1744358449850,0.0627702,116.37,116.35,8.65790148]
[1744358450346,8.5962,116.4,116.36,8.5985]
[1744358450553,11.81823712,116.49,116.33,4.483]
[1744358450755,1.46886615,116.48,116.33,4.483]
[1744358451051,8.5943,116.43,116.39,8.5964]
[1744358451246,11.81823712,116.49,116.33,4.483]
[1744358451554,0.05608151,116.42,116.4,0.06433999]
[1744358451750,47.71274782,116.48,116.4,0.06433999]
[1744358452050,47.71274782,116.48,116.44,8.5926]
[1744358452451,56.30314782,116.48,116.44,8.5926]
[1744358452653,47.71274782,116.48,116.36,17.1978]
[1744358452853,0.05739611,116.47,116.45,0.05675926]
[1744358453049,47.71274782,116.48,116.34,360.0]
[1744358453250,0.05927332,116.47,116.45,0.06572327]
[1744358453551,0.06363589,116.47,116.34,360.0]